bitfinex/quotes_SOLUSD_20250917
["timestamp","ask_amount","ask_price","bid_price","bid_amount"]
[1758126679168,2.20455779,233.49,233.46,4.28338901]
[1758126679370,1.55455779,233.48,233.44,17.87919684]
[1758126680082,1.55455779,233.48,233.44,18.55919684]
[1758126680677,1.55455779,233.48,233.44,14.27559401]
[1758126680869,1.55455779,233.48,233.44,18.55934]
[1758126681290,2.20455779,233.47,233.41,0.68]
[1758126681588,1.55455779,233.45,233.42,13.59559401]
[1758126681887,2.20455779,233.45,233.42,13.59559401]
[1758126682392,1.55455779,233.43,233.39,4.28449242]
[1758126682589,1.55455779,233.41,233.38,13.65559401]
[1758126683092,1.55455779,233.42,233.4,13.59559401]
[1758126683302,33.16,233.42,233.4,13.59559401]
[1758126683586,33.16,233.42,233.38,5.02476463]
[1758126683900,33.16,233.42,233.4,13.59559401]
[1758126684506,34.71455779,233.42,233.4,13.59559401]
[1758126684872,1.55455779,233.41,233.39,13.59559401]
[1758126685073,34.71455779,233.41,233.39,13.59559401]
[1758126685570,34.71455779,233.41,233.38,0.06]
[1758126685882,1.55455779,233.39,233.38,0.06]
[1758126686081,34.71455779,233.39,233.38,0.06]
[1758126686390,33.81,233.39,233.38,0.06]
[1758126687976,35.36455779,233.39,233.38,0.06]
[1758126689479,39.64923151,233.39,233.38,0.06]
[1758126689891,35.36455779,233.39,233.38,0.06]
[1758126692209,39.64923151,233.39,233.38,0.06]
[1758126694288,35.36455779,233.39,233.38,0.06]
[1758126695579,33.16,233.39,233.38,0.06]
[1758126696694,33.19,233.39,233.38,0.06]
[1758126696899,34.74455779,233.39,233.38,0.06]
[1758126697202,35.40455779,233.39,233.38,0.06]
[1758126697698,34.74455779,233.39,233.38,0.06]
[1758126698478,0.03,233.39,233.38,14.34559401]
[1758126698678,0.03,233.42,233.38,15.9001518]
[1758126698890,0.03,233.42,233.41,15.1501518]
[1758126699493,0.03,233.42,233.41,15.8401518]
[1758126699701,0.03,233.42,233.41,20.12445838]
[1758126700079,0.03,233.42,233.41,13.59559401]
[1758126702007,0.03,233.42,233.41,20.12445838]
[1758126702611,0.03,233.42,233.41,18.56990059]
[1758126702803,0.03,233.42,233.41,20.12445838]
[1758126705912,0.03,233.42,233.41,20.99940139]
[1758126706204,0.03,233.42,233.41,18.56990059]
[1758126706409,0.03,233.42,233.41,20.99940139]
[1758126707284,0.03,233.42,233.41,33.86913821]
[1758126709011,0.69,233.54,233.41,66.00143759]
[1758126709246,0.03,233.54,233.53,16.02509481]
[1758126709919,0.03,233.54,233.53,16.71509481]
[1758126710602,0.03,233.54,233.53,16.02509481]
[1758126710798,0.03,233.54,233.53,20.30719989]
[1758126711016,0.03,233.54,233.53,20.99719989]
[1758126712019,0.03,233.54,233.53,2.4295008]
[1758126712190,0.69,233.54,233.51,2.4295008]
[1758126712394,0.66,233.53,233.51,2.4295008]
[1758126712715,0.66,233.52,233.51,13.59559401]
[1758126713122,0.66,233.52,233.47,2.4295008]
[1758126713308,29.0895008,233.51,233.46,13.59559401]
[1758126713506,0.66,233.5,233.45,13.59559401]
[1758126713704,3.0895008,233.49,233.45,13.59559401]
[1758126713903,33.82,233.48,233.43,13.59559401]
[1758126714133,0.66,233.47,233.43,16.02509481]
[1758126714326,0.66,233.46,233.43,13.59559401]
[1758126714643,0.66,233.45,233.41,16.02509481]
[1758126714802,35.5895008,233.48,233.41,16.02509481]
[1758126715001,0.66,233.44,233.41,16.02509481]
[1758126715223,33.14,233.43,233.41,16.02509481]
[1758126715913,33.8,233.43,233.41,16.02509481]
[1758126716608,0.66,233.42,233.39,2.4295008]
[1758126716816,0.66,233.41,233.38,0.06]
[1758126717126,0.66,233.41,233.38,2.4895008]
[1758126717632,4.28416789,233.42,233.38,2.4895008]
[1758126717940,0.7,233.41,233.38,2.4895008]
[1758126719098,0.7,233.4,233.38,2.4895008]
[1758126719303,0.7,233.39,233.38,13.65559401]
[1758126719811,0.7,233.39,233.38,0.06]
[1758126721930,0.7,233.44,233.38,16.77509481]
[1758126722230,33.16,233.43,233.41,2.4295008]
[1758126722434,0.7,233.42,233.41,2.4295008]
[1758126722809,0.7,233.42,233.38,13.65559401]
[1758126723017,0.7,233.41,233.38,13.65559401]
[1758126723319,0.7,233.4,233.38,13.65559401]
[1758126723522,33.16,233.39,233.38,13.65559401]
[1758126723725,26.0,233.44,233.39,13.59559401]
[1758126723910,33.16,233.43,233.39,14.26559401]
[1758126724106,33.16,233.43,233.39,13.59559401]
[1758126724321,33.16,233.43,233.38,4.34485731]
[1758126724521,26.7,233.44,233.39,0.67]
[1758126724727,33.16,233.43,233.42,2.4295008]
[1758126725140,0.7,233.44,233.42,2.4295008]
[1758126725340,33.86,233.43,233.38,0.06]
[1758126725629,26.0,233.4,233.38,0.06]
[1758126725809,33.16,233.39,233.38,0.06]
[1758126726006,33.86,233.39,233.38,0.06]
[1758126726210,36.2895008,233.39,233.38,0.06]
[1758126726411,33.86,233.39,233.38,0.06]
[1758126727325,59.16,233.39,233.38,0.06]
[1758126728026,59.86,233.39,233.38,0.06]
[1758126729639,64.14467372,233.39,233.38,0.06]
[1758126731337,66.57417452,233.39,233.38,0.06]
[1758126731833,68.29139177,233.39,233.38,0.06]
[1758126732813,64.14467372,233.39,233.38,0.06]
[1758126734113,0.7,233.39,233.38,0.06]
[1758126734523,38.14467372,233.39,233.38,0.06]
[1758126737028,37.44467372,233.39,233.38,0.06]
[1758126737810,33.16,233.39,233.38,0.06]
[1758126738131,30.28451316,233.4,233.38,0.06]
[1758126738316,33.16,233.39,233.38,0.06]
[1758126738916,38.14467372,233.39,233.38,0.06]
[1758126741038,33.86,233.39,233.38,0.06]
[1758126741340,38.14467372,233.39,233.38,0.06]
[1758126743157,37.44467372,233.39,233.38,0.06]
[1758126743347,30.31414171,233.42,233.38,0.73]
[1758126743521,26.0,233.39,233.38,0.06]
[1758126743722,59.16,233.39,233.38,0.06]
[1758126744330,59.86,233.39,233.38,0.06]
[1758126744533,62.2895008,233.39,233.38,0.06]
[1758126744933,62.2895008,233.39,233.36,0.06]
[1758126745145,6.71454172,233.37,233.36,0.06]
[1758126745349,39.87454172,233.37,233.36,0.06]
[1758126745522,40.57454172,233.37,233.36,0.06]
[1758126748940,7.41454172,233.37,233.36,0.06]
[1758126749145,40.57454172,233.37,233.36,0.06]
[1758126751654,4.28504092,233.37,233.36,0.06]
[1758126751853,37.44504092,233.37,233.36,0.73]
[1758126753342,30.28504092,233.37,233.36,0.73]
[1758126753555,59.16,233.37,233.36,0.73]
[1758126754361,63.44504092,233.37,233.36,0.73]
[1758126755355,30.28504092,233.37,233.36,0.73]
[1758126755746,63.44504092,233.37,233.36,0.73]
[1758126757641,63.44504092,233.37,233.36,0.06]
[1758126757845,10.74062284,233.42,233.36,0.72]
[1758126758148,10.74062284,233.42,233.36,3.1495008]
[1758126758149,26.0,233.38,233.36,3.1495008]
[1758126758329,26.0,233.38,233.37,3.0895008]
[1758126758534,59.16,233.38,233.37,0.66]
[1758126760047,26.0,233.38,233.37,0.66]
[1758126760246,0.03,233.42,233.38,13.59559401]
[1758126760450,33.16,233.41,233.38,13.59559401]
[1758126760641,33.16,233.41,233.4,13.59559401]
[1758126760839,33.16,233.41,233.4,14.25559401]
[1758126761442,33.16,233.41,233.4,16.68509481]
[1758126763668,0.03,233.42,233.4,20.96958419]
[1758126763838,33.16,233.41,233.4,17.88008339]
[1758126764456,33.16,233.41,233.4,18.54008339]
[1758126765044,33.16,233.41,233.4,20.96958419]
[1758126765764,33.16,233.41,233.4,16.68509481]
[1758126767854,33.16,233.41,233.4,15.811554]
[1758126768250,33.16,233.41,233.4,20.09604414]
[1758126770864,0.03,233.42,233.4,20.09604414]
[1758126771052,0.03,233.42,233.41,15.811554]
[1758126771257,33.17,233.42,233.41,15.811554]
[1758126771973,0.03,233.42,233.41,15.811554]
[1758126772282,33.17,233.42,233.41,15.811554]
[1758126772447,0.03,233.42,233.41,15.811554]
[1758126773180,33.17,233.42,233.41,20.09586058]
[1758126774174,33.17,233.42,233.41,18.53990059]
[1758126774351,33.17,233.42,233.41,20.09586058]
[1758126774748,33.17,233.42,233.41,15.811554]
[1758126774971,33.17,233.42,233.41,15.151554]
[1758126775669,33.17,233.42,233.41,13.59559401]
[1758126775868,33.83,233.42,233.41,13.59559401]
[1758126776249,33.17,233.42,233.41,13.59559401]
[1758126776960,33.17,233.42,233.41,15.151554]
[1758126777165,33.17,233.42,233.41,15.851554]
[1758126778274,33.17,233.42,233.41,15.151554]
[1758126779077,33.17,233.42,233.41,20.13586058]
[1758126780279,0.03,233.42,233.41,20.13586058]
[1758126787752,0.03,233.45,233.42,13.59559401]
[1758126787956,0.03,233.45,233.44,15.151554]
[1758126788354,0.03,233.46,233.45,13.59559401]
[1758126788550,0.03,233.46,233.45,15.851554]
[1758126789677,0.03,233.46,233.45,20.13512649]
[1758126789884,0.03,233.47,233.45,26.78732369]
[1758126790181,0.03,233.47,233.46,22.07539396]
[1758126790383,0.03,233.54,233.47,13.59559401]
[1758126790592,0.03,233.54,233.51,15.151554]
[1758126791178,0.03,233.54,233.51,15.851554]
[1758126791759,0.03,233.54,233.51,20.13402584]
[1758126793975,0.73,233.54,233.51,17.87806585]
[1758126794293,0.73,233.54,233.51,19.43402584]
[1758126794480,0.03,233.54,233.51,19.43402584]
[1758126795000,0.03,233.54,233.51,15.151554]
[1758126795166,0.73,233.52,233.51,19.43402584]
[1758126795685,0.03,233.52,233.51,19.43402584]
[1758126795892,0.03,233.52,233.51,17.87806585]
[1758126796465,0.03,233.54,233.52,13.59559401]
[1758126796666,0.03,233.54,233.52,14.29559401]
[1758126796990,0.03,233.54,233.53,15.851554]
[1758126798367,0.03,233.54,233.53,20.13365908]
[1758126800071,0.03,233.54,233.53,18.57769909]
[1758126800279,0.03,233.54,233.53,20.13365908]
[1758126806421,0.03,233.56,233.54,13.59559401]
[1758126806586,0.03,233.57,233.56,15.151554]
[1758126806782,0.7,233.64,233.62,13.59559401]
[1758126807097,0.7,233.64,233.63,1.55595999]
[1758126807296,33.1,233.67,233.63,1.55595999]
[1758126807486,33.1,233.67,233.63,5.83608501]
[1758126807676,33.1,233.67,233.63,4.28012502]
[1758126807875,0.7,233.66,233.63,4.28012502]
[1758126808088,33.1,233.67,233.65,1.55595999]
[1758126808289,33.1,233.67,233.66,1.55595999]
[1758126808703,33.8,233.67,233.66,1.55595999]
[1758126809593,26.0,233.64,233.53,13.59559401]
[1758126809799,0.7,233.63,233.53,13.59559401]
[1758126809994,0.7,233.63,233.56,1.55595999]
[1758126809995,0.7,233.62,233.56,1.55595999]
[1758126810194,2.25595999,233.61,233.54,1.55595999]
[1758126810423,35.35595999,233.6,233.53,13.59559401]
[1758126810576,0.7,233.59,233.53,15.151554]
[1758126810780,26.0,233.57,233.53,15.151554]
[1758126810981,0.7,233.56,233.53,15.151554]
[1758126811211,0.7,233.55,233.53,15.151554]
[1758126811500,0.7,233.54,233.53,15.151554]
[1758126813006,0.7,233.54,233.51,0.06]
[1758126813210,34.65595999,233.53,233.51,0.06]
[1758126813388,5.83824844,233.52,233.51,0.06]
[1758126813576,6.53824844,233.52,233.51,0.06]
[1758126815800,4.98228845,233.52,233.51,0.06]
[1758126815999,33.8,233.52,233.51,0.06]
[1758126816990,64.08228845,233.52,233.51,0.06]
[1758126819984,65.63824844,233.52,233.51,0.06]
[1758126821907,64.08228845,233.52,233.51,0.06]
[1758126822095,65.63824844,233.52,233.51,0.06]
[1758126822597,64.08228845,233.52,233.51,0.06]
[1758126823109,65.63824844,233.52,233.51,0.06]
[1758126823906,32.53824844,233.52,233.51,0.06]
[1758126824091,4.98228845,233.52,233.51,0.06]
[1758126824294,39.65824844,233.52,233.51,0.06]
[1758126826589,6.53824844,233.52,233.51,0.06]
[1758126826790,39.65824844,233.52,233.51,0.06]
[1758126827690,4.28228845,233.52,233.51,0.06]
[1758126827898,39.83275447,233.52,233.51,0.06]
[1758126828198,4.28228845,233.52,233.51,0.06]
[1758126828522,37.40228845,233.52,233.51,0.06]
[1758126829919,40.49275447,233.52,233.51,0.06]
[1758126830327,39.83275447,233.52,233.51,0.06]
[1758126830615,40.49275447,233.52,233.51,0.06]
[1758126831194,4.94228845,233.52,233.51,0.06]
[1758126831396,40.49275447,233.52,233.51,0.06]
[1758126832206,39.83275447,233.52,233.51,0.06]
[1758126832406,37.40228845,233.52,233.51,0.06]
[1758126833506,26.0,233.53,233.51,0.73]
[1758126833707,59.12,233.52,233.51,0.06]
[1758126834221,59.12,233.52,233.51,0.73]
[1758126835517,59.12,233.52,233.51,3.16046602]
[1758126836231,10.7327716,233.59,233.51,3.16046602]
[1758126836530,26.0,233.55,233.53,2.43046602]
[1758126836699,33.12,233.54,233.53,3.10046602]
[1758126837021,33.12,233.54,233.53,2.43046602]
[1758126837396,33.12,233.54,233.53,3.10046602]
[1758126838119,33.12,233.54,233.53,0.67]
[1758126838318,33.12,233.54,233.51,2.49046602]
[1758126838522,33.12,233.54,233.52,3.11046602]
[1758126838821,33.12,233.54,233.53,2.43046602]
[1758126839822,33.12,233.54,233.53,3.11046602]
[1758126840524,33.12,233.54,233.53,2.43046602]
[1758126841001,33.12,233.54,233.53,3.11046602]
[1758126841201,10.7327716,233.59,233.53,3.11046602]
[1758126841202,0.03,233.59,233.54,13.59559401]
[1758126841411,0.03,233.59,233.58,2.43046602]
[1758126841603,33.15,233.59,233.58,2.43046602]
[1758126843001,33.15,233.59,233.58,3.11046602]
[1758126844116,0.03,233.59,233.58,3.11046602]
[1758126844307,33.13,233.59,233.58,3.11046602]
[1758126844916,0.03,233.59,233.58,20.98724848]
[1758126845126,0.03,233.59,233.58,18.55678246]
[1758126845422,0.03,233.59,233.58,20.98724848]
[1758126852133,0.03,233.59,233.58,18.55678246]
[1758126852314,0.03,233.59,233.58,20.98724848]
[1758126853525,0.03,233.59,233.58,18.55678246]
[1758126853732,0.03,233.59,233.58,20.98724848]
[1758126856712,0.03,233.59,233.58,18.55678246]
[1758126856911,0.03,233.59,233.58,20.98724848]
[1758126861438,0.03,233.59,233.58,20.30724848]
[1758126861643,0.03,233.59,233.58,18.54678246]
[1758126861938,0.03,233.59,233.58,20.97724848]
[1758126865862,0.03,233.59,233.58,13.59559401]
[1758126866347,0.03,233.59,233.58,18.54678246]
[1758126866644,0.03,233.59,233.58,20.97724848]
[1758126879128,0.75,233.59,233.58,17.87678246]
[1758126879352,0.75,233.59,233.58,13.59559401]
[1758126879530,0.75,233.59,233.57,0.06]
[1758126879735,2.43046602,233.58,233.57,0.06]
[1758126879950,5.03102117,233.59,233.57,0.06]
[1758126880143,3.15046602,233.58,233.57,0.06]
[1758126880954,33.43165447,233.58,233.57,0.06]
[1758126882651,66.51165447,233.58,233.57,0.06]
[1758126883456,33.43165447,233.58,233.57,0.06]
[1758126883844,66.51165447,233.58,233.57,0.06]
[1758126885453,33.43165447,233.58,233.57,0.06]
[1758126885640,62.23046602,233.58,233.57,0.06]
[1758126885837,26.0,233.58,233.57,0.06]
[1758126886153,33.08,233.58,233.57,0.06]
[1758126886549,33.08,233.58,233.57,0.76]
[1758126886870,33.08,233.58,233.57,5.04137175]
[1758126887071,33.08,233.58,233.57,4.34137175]
[1758126887767,0.03,233.59,233.57,5.04137175]
[1758126887954,33.08,233.58,233.57,5.04137175]
[1758126888361,33.08,233.58,233.57,6.59519083]
[1758126889255,33.08,233.58,233.57,5.89519083]
[1758126889969,33.08,233.58,233.57,4.34137175]
[1758126890263,33.08,233.58,233.57,0.06]
[1758126890564,33.8,233.58,233.57,0.06]
[1758126890741,39.63500753,233.58,233.57,0.06]
[1758126897547,39.66500753,233.58,233.57,0.06]
[1758126903869,0.03,233.58,233.57,0.75]
[1758126904174,33.11,233.58,233.57,0.75]
[1758126904365,33.11,233.58,233.57,0.06]
[1758126904566,37.39118845,233.58,233.57,0.06]
[1758126904768,33.11,233.58,233.57,0.06]
[1758126905779,0.03,233.58,233.57,2.30381908]
[1758126906078,33.11,233.58,233.57,20.18078484]
[1758126906557,33.11,233.58,233.57,15.89941309]
[1758126909376,0.03,233.58,233.57,20.18078484]
[1758126909973,0.03,233.58,233.57,15.89941309]
[1758126910165,0.03,233.58,233.57,20.18078484]
[1758126913263,0.03,233.58,233.57,13.65559401]
[1758126913468,0.03,233.58,233.57,0.06]
[1758126913687,0.74,233.58,233.57,0.06]
[1758126913885,0.03,233.58,233.57,0.06]
[1758126916071,0.74,233.58,233.57,0.06]
[1758126916267,0.03,233.58,233.57,0.06]
[1758126917869,0.03,233.58,233.57,0.75]
[1758126918072,0.03,233.58,233.57,0.06]
[1758126921182,33.09,233.58,233.57,0.06]
[1758126921379,33.8,233.58,233.57,0.06]
[1758126921687,39.63500753,233.58,233.57,0.06]
[1758126928309,0.03,233.58,233.57,0.06]
[1758126928499,33.09,233.58,233.57,0.75]
[1758126934329,0.03,233.58,233.57,0.75]
[1758126934621,33.09,233.58,233.57,0.75]
[1758126935007,33.09,233.58,233.57,2.30381908]
[1758126936321,33.09,233.58,233.57,1.61381908]
[1758126937124,33.09,233.58,233.57,0.06]
[1758126937529,37.37118845,233.58,233.57,0.06]
[1758126937823,38.08118845,233.58,233.57,0.06]
[1758126938395,39.63500753,233.58,233.57,0.06]
[1758126939032,38.08118845,233.58,233.57,0.06]
[1758126941706,37.37118845,233.58,233.57,0.06]
[1758126942434,40.70661579,233.58,233.57,0.06]
[1758126943707,7.64661579,233.58,233.57,0.06]
[1758126943905,40.68661579,233.58,233.57,0.06]
[1758126944827,39.13279671,233.58,233.57,0.06]
[1758126945039,40.68661579,233.58,233.57,0.06]
[1758126947833,41.56241852,233.58,233.57,0.06]
[1758126948432,39.13279671,233.58,233.57,0.06]
[1758126948621,41.56241852,233.58,233.57,0.06]
[1758126950526,5.38279671,233.58,233.57,0.73]
[1758126950725,37.35118845,233.58,233.57,0.73]
[1758126950929,37.35118845,233.58,233.57,0.06]
[1758126952030,37.35118845,233.58,233.57,0.73]
[1758126952546,37.35118845,233.58,233.57,0.06]
[1758126953038,0.03,233.58,233.57,0.06]
[1758126953236,33.07,233.58,233.57,3.15962181]
[1758126954340,33.07,233.58,233.57,21.03658757]
[1758126954941,0.03,233.58,233.57,21.03658757]
[1758126956138,0.03,233.61,233.58,13.59559401]
[1758126956342,0.03,233.61,233.6,18.45483763]
[1758126956733,0.03,233.61,233.6,19.12483763]
[1758126957440,0.03,233.61,233.6,23.40565954]
[1758126958548,0.03,233.61,233.6,20.97603773]
[1758126959924,0.03,233.61,233.6,23.40565954]
[1758126960445,1e-08,233.62,233.6,23.83374173]
[1758126960644,0.03,233.67,233.62,39.59559401]
[1758126960836,0.03,233.67,233.66,16.02521582]
[1758126961237,0.03,233.67,233.66,16.74521582]
[1758126961928,0.03,233.67,233.66,21.02493849]
[1758126967235,0.03,233.67,233.66,18.59531668]
[1758126967449,0.03,233.67,233.66,21.02493849]
[1758126967830,0.03,233.67,233.66,22.73899159]
[1758126968237,0.03,233.7,233.67,13.59559401]
[1758126968439,0.03,233.7,233.68,20.3045722]
[1758126968755,0.03,233.7,233.69,42.02521582]
[1758126968942,0.03,233.72,233.7,13.59559401]
[1758126969258,0.03,233.72,233.71,16.02521582]
[1758126969445,0.03,233.72,233.71,16.70521582]
[1758126970033,0.03,233.72,233.71,20.98402288]
[1758126970737,0.03,233.72,233.71,23.41364469]
[1758126971138,0.03,233.72,233.71,20.98402288]
[1758126972357,0.03,233.72,233.71,23.41364469]
[1758126973952,0.03,233.72,233.71,20.98402288]
[1758126976259,0.72,233.72,233.65,10.69971122]
[1758126976466,0.72,233.72,233.67,2.42962181]
[1758126976467,0.69,233.71,233.67,2.42962181]
[1758126976638,3.11962181,233.7,233.64,6.70971083]
[1758126976843,0.69,233.69,233.65,16.02521582]
[1758126977070,0.69,233.68,233.67,13.59559401]
[1758126979554,0.03,233.72,233.67,20.30475534]
[1758126979766,0.69,233.7,233.67,20.30475534]
[1758126979949,0.69,233.69,233.67,20.30475534]
[1758126980672,0.72,233.72,233.69,13.59559401]
[1758126980964,0.69,233.71,233.69,2.42962181]
[1758126981186,0.69,233.71,233.67,14.97838832]
[1758126981354,0.69,233.71,233.7,16.02521582]
[1758126981671,0.03,233.72,233.7,16.02521582]
[1758126981854,0.03,233.72,233.71,16.02521582]
[1758126982456,0.03,233.72,233.71,20.30402288]
[1758126983348,0.72,233.72,233.71,20.30402288]
[1758126983668,0.72,233.72,233.71,17.87440107]
[1758126983868,0.72,233.72,233.71,20.30402288]
[1758126984373,0.03,233.72,233.71,20.30402288]
[1758126984873,0.03,233.72,233.71,17.87440107]
[1758126985056,0.03,233.72,233.71,20.98402288]
[1758126985258,0.03,233.72,233.71,22.69770881]
[1758126985976,0.03,233.72,233.71,20.268087]
[1758126986176,0.03,233.75,233.71,22.69770881]
[1758126986355,0.03,233.75,233.74,44.45483763]
[1758126986554,0.03,233.75,233.74,48.73309552]
[1758126986755,0.03,233.75,233.74,49.41309552]
[1758126987049,0.1,233.82,233.75,13.59559401]
[1758126987254,0.1,233.82,233.81,16.02521582]
[1758126988247,0.1,233.82,233.81,16.70521582]
[1758126988661,0.1,233.82,233.81,20.98219285]
[1758126994494,0.69,233.89,233.82,13.59559401]
[1758126994676,0.69,233.89,233.88,16.02521582]
[1758126995579,0.72,233.91,233.89,13.59559401]
[1758126995782,0.72,233.91,233.9,16.02521582]
[1758126996467,0.72,233.93,233.9,13.59559401]
[1758126996672,33.0,233.96,233.93,13.59559401]
[1758126997268,0.72,233.95,233.93,13.59559401]
[1758126997465,26.0,233.97,233.95,13.59559401]
[1758126997671,0.72,233.96,233.95,13.59559401]
[1758126998483,0.72,233.96,233.95,2.42962181]
[1758126999157,0.72,233.96,233.95,13.59559401]
[1758127002282,33.72,233.98,233.95,16.02521582]
[1758127002585,0.72,233.96,233.95,16.02521582]
[1758127002881,0.72,233.97,233.95,16.02521582]
[1758127003262,0.03,233.96,233.95,16.02521582]
[1758127004067,0.75,233.96,233.95,16.02521582]
[1758127004361,0.03,233.96,233.95,16.02521582]
[1758127004573,0.75,233.96,233.95,16.02521582]
[1758127005890,0.03,233.96,233.95,16.02521582]
[1758127009892,0.03,233.96,233.95,15.14436556]
[1758127013172,0.03,233.96,233.94,13.59559401]
[1758127013389,0.03,233.96,233.95,1.54877155]
[1758127014392,0.03,233.96,233.95,2.26877155]
[1758127014777,0.03,233.96,233.95,6.54318916]
[1758127015484,0.03,233.96,233.95,5.82318916]
[1758127016090,0.03,233.96,233.95,6.54318916]
[1758127018299,0.69,233.96,233.93,15.14436556]
[1758127018486,0.03,233.96,233.94,1.54877155]
[1758127020002,0.03,233.96,233.95,15.14436556]
[1758127020688,0.03,233.96,233.95,15.82436556]
[1758127020885,0.03,233.96,233.95,15.14436556]
[1758127022202,0.03,233.96,233.95,15.82436556]
[1758127022373,0.03,233.96,233.95,20.09878317]
[1758127022799,0.03,233.96,233.95,19.41878317]
[1758127023583,0.03,233.96,233.95,17.87001162]
[1758127023783,0.03,233.96,233.95,19.41878317]
[1758127023976,0.03,233.96,233.95,20.10878317]
[1758127024594,0.03,233.96,233.95,19.41878317]
[1758127025082,0.03,233.96,233.95,17.87001162]
[1758127025274,0.03,233.96,233.95,15.14436556]
[1758127026901,0.03,233.96,233.95,19.41878317]
[1758127027698,0.03,233.96,233.95,20.10878317]
[1758127027890,0.03,233.96,233.95,19.41878317]
[1758127028202,0.03,233.96,233.93,0.69]
[1758127028409,0.03,233.96,233.95,13.59559401]
[1758127028600,0.03,233.96,233.95,15.14436556]
[1758127029309,0.03,233.96,233.95,13.59559401]
[1758127029507,0.72,233.96,233.95,13.59559401]
[1758127032808,4.99423491,233.96,233.9,2.23877155]
[1758127033020,33.65,233.95,233.87,0.69]
[1758127033226,33.65,233.95,233.88,13.59559401]
[1758127033397,0.69,233.94,233.88,15.14436556]
[1758127033597,0.69,233.94,233.88,15.83436556]
[1758127034193,0.69,233.94,233.88,20.10996773]
[1758127034808,0.69,233.94,233.89,0.69]
[1758127035117,0.69,233.94,233.89,2.23877155]
[1758127035290,4.96476415,233.94,233.89,2.23877155]
[1758127035486,0.69,233.93,233.89,2.23877155]
[1758127035693,4.27476415,233.94,233.9,0.69]
[1758127035892,4.27476415,233.94,233.89,2.23877155]
[1758127036115,0.69,233.93,233.89,2.23877155]
[1758127036324,0.03,233.96,233.92,15.14436556]
[1758127036625,32.99,233.96,233.95,15.14436556]
[1758127037220,32.99,233.96,233.95,13.59559401]
[1758127037393,37.95423491,233.96,233.95,13.59559401]
[1758127037713,37.95423491,233.96,233.92,13.59559401]
[1758127037904,0.69,233.95,233.92,13.59559401]
[1758127038113,32.96,233.94,233.92,1.54877155]
[1758127038503,32.96,233.94,233.93,13.59559401]
[1758127039892,32.96,233.94,233.92,13.59559401]
[1758127040100,32.96,233.93,233.92,13.59559401]
[1758127040809,0.03,233.94,233.92,13.59559401]
[1758127041016,32.99,233.94,233.93,14.28559401]
[1758127041219,32.99,233.94,233.93,15.14436556]
[1758127042921,32.99,233.94,233.93,13.59559401]
[1758127043415,32.99,233.94,233.93,15.14436556]
[1758127043915,33.68,233.94,233.91,1.54877155]
[1758127044113,0.69,233.93,233.92,13.59559401]
[1758127044320,37.26466676,233.94,233.89,14.28559401]
[1758127044527,37.26466676,233.94,233.89,15.83436556]
[1758127044896,37.26466676,233.94,233.91,13.59559401]
[1758127045297,1.54877155,233.93,233.87,0.69]
[1758127045517,1.54877155,233.93,233.88,13.59559401]
[1758127045893,1.54877155,233.93,233.88,14.28559401]
[1758127046317,4.2749658,233.92,233.88,14.28559401]
[1758127047506,5.8235546,233.93,233.88,14.28559401]
[1758127048112,6.3935546,233.93,233.88,14.28559401]
[1758127049204,32.96,233.92,233.88,14.28559401]